bitfinex-derivatives/quotes_ETHF0:USTF0_20260123
["timestamp","ask_amount","ask_price","bid_price","bid_amount"]
[1769184545017,0.00372768,2959.3,2958.0,0.1376947]
[1769184545417,0.00372768,2959.3,2958.0,0.3069347]
[1769184545720,0.00372768,2959.3,2958.1,0.1376947]
[1769184545916,0.00372768,2959.3,2958.1,0.14201175]
[1769184546312,0.00372768,2959.3,2958.1,0.00431705]
[1769184548115,0.83405966,2959.2,2958.1,0.00431705]
[1769184548421,0.00372768,2959.3,2958.1,0.00431705]
[1769184548622,0.83415074,2959.2,2958.1,0.00431705]
[1769184548919,0.15143974,2959.3,2958.1,0.00431705]
[1769184549119,0.15143974,2959.3,2955.8,11.11926957]
[1769184549120,0.98186404,2959.2,2957.1,0.13883641]
[1769184549423,0.83415198,2959.1,2957.1,0.13883641]
[1769184550018,0.14771206,2959.0,2957.1,0.13883641]
[1769184550224,0.83415198,2958.9,2957.1,0.14224409]
[1769184551028,0.83415198,2958.8,2957.1,0.14224409]
[1769184551226,0.83415198,2958.7,2957.1,0.14224409]
[1769184551419,0.14771206,2959.0,2957.1,0.14224409]
[1769184551623,0.83472328,2958.9,2957.1,0.14224409]
[1769184551826,0.83472328,2958.8,2957.1,0.14224409]
[1769184552124,0.83472328,2958.7,2957.1,0.14224409]
[1769184552324,0.14771206,2959.0,2957.1,0.14224409]
[1769184552325,0.83472328,2958.6,2957.1,0.14224409]
[1769184552520,0.31689206,2959.0,2957.1,0.14224409]
[1769184552825,1.15177586,2958.9,2957.1,0.14224409]
[1769184553018,0.16922,2958.4,2957.1,0.00340768]
[1769184553215,0.14771206,2958.2,2956.1,0.13883641]
[1769184553423,0.8348738,2958.1,2956.1,0.13883641]
[1769184554330,0.14771206,2957.9,2956.1,0.00314529]
[1769184554524,0.8348738,2957.8,2956.1,0.1419817]
[1769184554721,0.8348738,2957.7,2956.1,0.1419817]
[1769184555022,0.16924,2958.0,2956.1,0.1419817]
[1769184555229,0.83482889,2957.9,2956.1,0.1419817]
[1769184555428,0.83482889,2957.8,2956.1,0.1419817]
[1769184555628,0.16924,2958.0,2956.1,0.1419817]
[1769184555924,0.83465179,2957.9,2956.1,0.1419817]
[1769184556130,0.83465179,2957.8,2956.1,0.1419817]
[1769184556327,0.16924,2958.0,2956.1,0.1419817]
[1769184556523,0.83448498,2957.9,2956.1,0.1419817]
[1769184556832,0.16924,2958.0,2956.1,0.1419817]
[1769184557031,0.83446436,2957.9,2956.1,0.1419817]
[1769184557329,0.16924,2958.0,2956.1,0.1419817]
[1769184557527,0.83426931,2957.9,2956.1,0.1419817]
[1769184557829,0.16924,2958.0,2956.1,0.1419817]
[1769184558025,0.83426918,2957.9,2956.2,0.13883641]
[1769184558230,0.14771206,2958.4,2956.3,0.13883641]
[1769184558425,0.8341607,2958.3,2956.3,0.13883641]
[1769184558624,0.8341607,2958.2,2956.3,0.13883641]
[1769184558824,0.8341607,2958.1,2956.3,0.13883641]
[1769184559030,0.31696206,2957.8,2956.1,0.00314529]
[1769184559330,0.83416893,2957.7,2956.1,0.00314529]
[1769184559532,0.16922,2958.5,2956.1,0.1419817]
[1769184559724,0.83381354,2958.4,2956.1,0.1419817]
[1769184559924,0.83381354,2958.3,2956.1,0.1419817]
[1769184560124,0.83381354,2958.2,2956.1,0.1419817]
[1769184560325,0.83381354,2958.1,2956.1,0.1419817]
[1769184560530,0.16922,2958.3,2956.2,0.13883641]
[1769184560723,0.8336256,2958.2,2956.3,0.13883641]
[1769184560928,0.16922,2958.3,2956.4,0.13883641]
[1769184561926,0.16922,2958.3,2956.5,0.13883641]
[1769184562431,0.16919,2958.9,2956.7,0.13883641]
[1769184562620,0.83342628,2958.8,2956.7,0.13883641]
[1769184562824,0.83342628,2958.7,2956.7,0.13883641]
[1769184563027,0.16919,2958.9,2956.8,0.13883641]
[1769184563229,0.83341761,2958.8,2956.8,0.13883641]
[1769184563432,0.83341761,2958.7,2956.8,0.13883641]
[1769184563732,0.16919,2958.9,2956.8,0.13883641]
[1769184563934,0.83344898,2958.8,2956.8,0.13883641]
[1769184564132,0.16919,2958.9,2956.8,0.13883641]
[1769184564432,0.83344888,2958.8,2956.8,0.13883641]
[1769184564627,0.83344888,2958.7,2956.8,0.13883641]
[1769184564830,0.16919,2958.9,2956.8,0.13883641]
[1769184565031,0.83350583,2958.8,2956.8,0.13883641]
[1769184565331,0.83359439,2958.7,2956.8,0.13883641]
[1769184565532,0.31690206,2958.9,2956.8,0.13883641]
[1769184565731,0.83359439,2958.8,2956.8,0.13883641]
[1769184565932,0.83359439,2958.7,2956.8,0.13883641]
[1769184566131,0.16919,2958.9,2957.0,0.13883641]
[1769184566334,0.83356639,2958.8,2957.0,0.13883641]
[1769184566535,0.16919,2958.9,2957.0,0.13883641]
[1769184566733,0.83365579,2958.8,2957.0,0.13883641]
[1769184566934,0.16919,2958.9,2957.0,0.13883641]
[1769184567134,0.83365597,2958.8,2957.0,0.13883641]
[1769184567340,0.16919,2958.9,2957.0,0.13883641]
[1769184567534,0.83366202,2958.8,2957.0,0.13883641]
[1769184567730,0.16919,2958.8,2957.0,0.13883641]
[1769184567926,0.83372971,2958.7,2957.0,0.13883641]
[1769184568134,0.31690206,2958.8,2957.0,0.13883641]
[1769184568332,0.83363245,2958.7,2957.0,0.13883641]
[1769184568637,0.31690206,2958.8,2957.0,0.13883641]
[1769184568832,0.16919,2958.8,2957.0,0.13883641]
[1769184569028,0.15143974,2959.3,2957.1,0.13883641]
[1769184569230,0.83363385,2959.2,2957.3,0.13883641]
[1769184569536,0.00372768,2959.3,2957.3,0.13883641]
[1769184570335,0.00372768,2959.3,2957.5,0.13883641]
[1769184570928,0.00372768,2959.3,2957.5,0.30810641]
[1769184571241,0.00372768,2959.3,2957.6,0.13883641]
[1769184572145,0.00372768,2959.3,2958.1,0.14378661]
[1769184572640,0.00372768,2959.3,2958.2,0.31301661]
[1769184572837,0.00372768,2959.3,2958.3,0.14378661]
[1769184574342,0.16911,2960.3,2958.3,0.14378661]
[1769184574543,0.44247554,2960.3,2958.3,0.14378661]
[1769184575345,0.44542022,2960.3,2958.3,0.14378661]
[1769184576346,0.44542022,2960.3,2958.4,0.14378661]
[1769184576644,0.44542022,2960.3,2958.9,0.14378661]
[1769184576645,0.00294468,2960.3,2958.9,0.14378661]
[1769184577039,0.00294468,2960.3,2958.2,0.00244737]
[1769184577040,2.58710675,2961.5,2959.2,0.14378661]
[1769184577347,0.14626119,2961.7,2959.7,0.14378661]
[1769184577548,0.41589682,2961.7,2959.8,0.14378661]
[1769184578041,0.58846383,2961.7,2959.8,0.14378661]
[1769184578245,0.16904,2961.6,2959.8,0.14378661]
[1769184578741,0.16905,2961.4,2959.3,0.14378661]
[1769184578944,0.16906,2961.2,2959.3,0.14378661]
[1769184579146,0.14626119,2961.1,2959.3,0.14378661]
[1769184580045,0.14626119,2961.0,2958.8,0.16919]
[1769184580247,0.14626119,2961.0,2958.9,0.14378661]
[1769184580742,0.16907,2960.9,2958.9,0.14378661]
[1769184582541,0.14626119,2960.8,2958.9,0.14378661]
[1769184583450,0.31534119,2960.8,2958.9,0.14378661]
[1769184583651,0.31535119,2960.7,2958.9,0.14378661]
[1769184584246,0.14626119,2960.4,2958.4,0.14378661]
[1769184584450,0.14626119,2960.3,2958.4,0.14378661]
[1769184584750,0.31538119,2960.2,2958.4,0.14378661]
[1769184585848,0.14626119,2960.7,2958.4,0.14378661]
[1769184586050,0.14626119,2960.7,2958.5,0.14378661]
[1769184586451,0.14626119,2960.6,2958.5,0.14378661]
[1769184586648,0.14626119,2960.4,2958.5,0.14378661]
[1769184586850,0.14626119,2960.3,2958.5,0.14378661]
[1769184587157,0.14626119,2960.2,2958.5,0.14378661]
[1769184587856,0.14626119,2960.1,2958.2,0.00244737]
[1769184590261,0.14626119,2960.1,2958.3,0.14378661]
[1769184590452,0.16912,2960.2,2958.3,0.14378661]
[1769184590759,0.31538119,2960.2,2958.3,0.14378661]
[1769184591556,0.16913,2960.0,2958.2,0.00244737]
[1769184591760,0.14626119,2959.8,2958.2,0.00244737]
[1769184591958,0.14626119,2959.7,2958.2,0.00244737]
[1769184593662,0.14626119,2959.6,2958.2,0.00244737]
[1769184593862,0.15053971,2959.6,2958.2,0.00244737]
[1769184595260,0.31542119,2959.4,2958.2,0.00244737]
[1769184595464,0.14626119,2959.3,2958.2,0.00244737]
[1769184595859,0.16916,2959.4,2958.2,0.00244737]
[1769184596462,0.00427852,2959.6,2958.2,0.00244737]
[1769184596662,0.82797432,2959.5,2958.2,0.00244737]
[1769184596863,0.82797432,2959.4,2958.2,0.00244737]
[1769184597069,0.31968971,2959.6,2958.2,0.00244737]
[1769184597268,0.82801384,2959.5,2958.2,0.00244737]
[1769184597468,0.82801384,2959.4,2958.2,0.00244737]
[1769184597671,0.31968971,2959.6,2958.2,0.00244737]
[1769184597871,0.82825636,2959.5,2958.2,0.00244737]
[1769184598063,0.82825636,2959.4,2958.2,0.00244737]
[1769184598267,0.17342852,2959.6,2958.2,0.00244737]
[1769184598462,0.82860774,2959.5,2958.2,0.00244737]
[1769184598666,0.17342852,2959.6,2958.2,0.00244737]
[1769184598868,0.828613,2959.5,2958.2,0.14623398]
[1769184599074,0.00427852,2959.6,2958.2,0.14623398]
[1769184601488,0.00427852,2959.6,2958.2,0.00244737]
[1769184601687,0.82879338,2959.5,2958.2,0.00244737]
[1769184601875,0.00427852,2959.6,2958.2,0.00244737]
[1769184602079,0.82880297,2959.5,2958.2,0.00244737]
[1769184602384,0.00427852,2959.6,2958.2,0.00244737]
[1769184603775,0.00427852,2959.6,2958.2,0.13993898]
[1769184606584,0.1691,2960.4,2958.5,0.14313975]
[1769184606784,0.1512549,2960.2,2958.5,0.14313975]
[1769184607488,0.15433784,2960.2,2958.5,0.14313975]
[1769184607787,0.8312759,2960.1,2958.5,0.14313975]
[1769184607980,0.15433784,2960.2,2958.5,0.14313975]
[1769184608180,0.8312908,2960.1,2958.5,0.14313975]
[1769184608485,0.83187375,2960.0,2958.5,0.14313975]
[1769184608687,0.15433784,2960.2,2958.5,0.14313975]
[1769184608883,0.83187372,2960.1,2958.5,0.14313975]
[1769184609091,0.00308294,2960.2,2958.5,0.14313975]
[1769184609289,0.83218736,2960.1,2958.5,0.14313975]
[1769184609482,0.00308294,2960.2,2958.5,0.14313975]
[1769184609681,0.83217733,2960.1,2958.5,0.14313975]
[1769184609882,0.00308294,2960.2,2958.5,0.14313975]
[1769184611685,0.00308294,2960.2,2958.7,0.14313975]
[1769184611981,0.00308294,2960.2,2958.2,0.00244737]
[1769184611982,0.1512549,2960.1,2958.4,2.37011545]
[1769184612184,0.83282937,2960.0,2958.2,0.00244737]
[1769184612485,0.83282937,2959.9,2958.2,0.00244737]
[1769184612689,0.00308294,2960.2,2958.2,0.00244737]
[1769184612889,0.8330883,2960.1,2958.2,0.00244737]
[1769184613078,0.8330883,2960.0,2958.2,0.00244737]
[1769184613283,0.00308294,2960.2,2958.2,0.00244737]
[1769184613587,0.83330189,2960.1,2958.2,0.00244737]
[1769184613785,0.83330189,2960.0,2958.2,2.37256282]
[1769184613986,0.00308294,2960.2,2958.2,2.54179282]
[1769184614188,0.00308294,2960.2,2958.5,0.31234975]
[1769184614384,0.00308294,2960.2,2958.6,0.14313975]
[1769184614690,0.00308294,2960.2,2958.8,0.14313975]
[1769184615090,0.00308294,2960.2,2958.8,0.31232975]
[1769184615391,0.16905,2961.4,2959.1,0.14313975]
[1769184615590,0.16905,2961.4,2959.2,0.14313975]
[1769184615591,0.83281211,2961.3,2959.2,0.14313975]
[1769184615892,0.83281211,2961.2,2959.3,0.14313975]
[1769184616087,0.16905,2961.4,2959.4,0.14313975]
[1769184616383,0.1512549,2961.2,2959.4,0.14313975]
[1769184616588,0.98397681,2961.1,2959.4,0.14313975]
[1769184616889,0.83272191,2961.0,2959.4,0.14313975]
[1769184617085,0.83272191,2960.9,2959.4,0.14313975]
[1769184617286,0.3203149,2961.1,2959.4,0.14313975]
[1769184617485,0.83199731,2961.0,2959.4,0.14313975]
[1769184617685,0.00396267,2961.4,2959.4,0.14313975]
[1769184617890,0.98312809,2961.3,2959.4,0.14313975]
[1769184618093,0.83187319,2961.2,2959.4,0.14313975]
[1769184618689,0.1512549,2961.1,2959.4,0.14313975]
[1769184618886,0.83156919,2961.0,2959.4,0.14313975]
[1769184619086,0.1512549,2961.1,2959.4,0.14313975]
[1769184619398,0.83160874,2961.0,2959.4,0.14313975]
[1769184619690,0.1512549,2961.1,2959.4,0.14313975]
[1769184619990,0.83131733,2961.0,2959.4,0.14313975]
[1769184620189,0.1512549,2961.1,2959.4,0.14313975]
[1769184620386,0.83134556,2961.0,2959.4,0.14313975]
[1769184620588,0.1512549,2961.1,2959.4,0.14313975]
[1769184620788,0.83113634,2961.0,2959.4,0.14313975]
[1769184620985,0.1512549,2961.1,2959.4,0.14313975]
[1769184621189,0.83114081,2961.0,2959.4,0.14313975]
[1769184621388,0.1512549,2961.1,2959.4,0.14313975]
[1769184621582,0.83097084,2961.0,2959.4,0.14313975]
[1769184621790,0.1512549,2961.0,2958.9,0.14313975]
[1769184622390,0.1512549,2960.9,2958.9,0.14313975]
[1769184622791,0.1512549,2960.8,2958.9,0.14313975]
[1769184624182,0.1512549,2960.6,2958.9,0.14313975]
[1769184624391,0.1512549,2960.3,2958.4,0.14313975]
[1769184624586,0.9823835,2960.2,2958.4,0.14313975]
[1769184624791,0.8311286,2960.1,2958.4,0.14313975]
[1769184625995,1.0002486,2960.1,2958.4,0.14313975]
[1769184626294,0.1512549,2959.9,2958.2,0.00244737]
[1769184626488,0.3203849,2959.9,2958.2,0.00244737]
[1769184626891,0.3204049,2959.6,2958.2,0.00244737]
[1769184627086,0.3204149,2959.4,2958.2,0.00244737]
[1769184627294,0.1512549,2959.2,2957.4,0.14313975]
[1769184627594,0.83159944,2959.1,2957.4,0.14313975]
[1769184628192,0.83421031,2959.1,2957.4,0.14626754]
[1769184628494,0.00261087,2959.1,2957.4,0.14626754]
[1769184629295,0.15386577,2959.1,2957.4,0.14626754]
[1769184629897,0.1512549,2958.9,2957.4,0.00312779]
[1769184630898,0.98238545,2958.8,2957.4,0.00312779]
[1769184631193,0.83114203,2958.7,2957.4,0.00312779]
[1769184631497,0.1512549,2958.8,2957.4,0.00312779]
[1769184631697,0.1512549,2958.6,2957.4,0.00312779]
[1769184632696,0.83025842,2958.5,2956.9,0.14313975]
[1769184632896,0.1512549,2958.6,2956.9,0.14313975]
[1769184633100,0.8302493,2958.5,2956.9,0.14313975]
[1769184633300,0.1692,2958.7,2956.9,0.14313975]
[1769184633803,0.1692,2958.7,2956.9,0.14647003]
[1769184639708,0.14230775,2958.6,2956.9,0.14647003]
[1769184639905,0.31151775,2958.5,2956.9,0.14647003]
[1769184640098,0.31151775,2958.5,2956.9,0.00333028]
[1769184641209,0.14230775,2959.0,2956.9,0.14080728]
[1769184641406,0.31149775,2958.9,2956.9,0.14080728]
[1769184641706,0.16919,2958.8,2956.9,0.14080728]
[1769184642008,0.16922,2958.4,2956.9,0.00333028]
[1769184642211,0.16922,2958.4,2956.9,0.14080728]
[1769184642702,0.43549384,2958.4,2956.9,0.14080728]
[1769184643302,0.31152775,2958.3,2956.9,0.00333028]
[1769184643503,0.14230775,2958.2,2956.9,0.00333028]
[1769184644105,0.31153775,2958.2,2956.9,0.00333028]
[1769184644300,0.16923,2958.1,2956.9,0.00333028]
[1769184644507,0.14230775,2958.2,2956.9,0.00333028]
[1769184644709,0.14230775,2957.9,2955.7,0.137477]
[1769184645607,0.14230775,2957.9,2955.7,0.14005362]
[1769184646508,0.14230775,2957.9,2955.8,0.137477]
[1769184646707,0.16924,2958.1,2955.7,0.17194662]
[1769184646708,0.40858159,2958.4,2956.1,0.137477]
[1769184646906,0.40858159,2958.4,2956.2,0.137477]
[1769184647225,0.14230775,2958.3,2956.2,0.137477]
[1769184649317,0.26627384,2958.4,2956.4,0.137477]
[1769184649614,0.16921,2958.6,2956.4,0.137477]
[1769184649813,0.44037031,2958.6,2956.5,0.137477]
[1769184650416,0.27116031,2958.6,2956.6,0.137477]
[1769184650615,0.14230775,2958.8,2956.6,0.137477]
[1769184650818,0.83135891,2958.7,2956.6,0.137477]
[1769184651020,0.14230775,2958.8,2956.6,0.137477]
[1769184651318,0.83135802,2958.7,2956.6,0.306797]
[1769184651511,0.14230775,2958.5,2956.7,0.137477]
[1769184651707,1.46068449,2958.2,2956.0,0.16935]
[1769184651911,1.46068449,2958.7,2956.4,0.137477]
[1769184652117,0.83215271,2958.6,2956.4,0.137477]
[1769184652334,0.83215271,2958.5,2956.4,0.137477]
[1769184652519,0.83215271,2958.4,2956.4,0.137477]
[1769184652717,1.46068449,2958.7,2956.4,0.137477]
[1769184652915,0.83298021,2958.6,2956.4,0.137477]
[1769184653119,0.83298021,2958.5,2956.4,0.137477]
[1769184653312,2.42067762,2959.1,2957.2,0.137477]
[1769184653313,0.00261087,2959.1,2957.2,0.137477]
[1769184653518,0.00261087,2959.1,2957.6,0.306737]
[1769184653717,0.00261087,2959.1,2957.7,0.137477]
[1769184653914,0.16912,2960.2,2958.0,0.137477]
[1769184654119,0.16912,2960.2,2957.9,0.16924]
[1769184654120,0.14230775,2960.0,2957.9,0.16924]
[1769184654423,0.83353322,2960.1,2958.0,0.137477]
[1769184654424,2.29421771,2959.9,2958.0,0.137477]
[1769184654626,0.83353322,2959.8,2958.0,0.137477]
[1769184654925,0.83699035,2959.8,2958.0,0.14086732]
[1769184655226,0.83353322,2959.7,2958.0,0.14086732]
[1769184655413,0.00345713,2959.8,2958.0,0.14086732]
[1769184656024,0.00345713,2959.8,2958.2,0.137477]
[1769184656622,0.14576488,2959.8,2958.1,0.137477]
[1769184656816,0.97636009,2959.7,2958.0,0.00339032]
[1769184657017,0.97636009,2959.6,2958.0,0.00339032]
[1769184657224,0.83405234,2959.5,2958.0,0.00339032]
[1769184657915,1.00321234,2959.5,2958.0,0.00339032]
[1769184658120,0.83405234,2959.4,2958.0,0.00339032]
[1769184658725,0.16916,2959.5,2958.0,0.14086732]
[1769184658923,0.00345713,2959.8,2958.0,0.14086732]
[1769184660122,0.97592079,2959.7,2958.0,0.14086732]
[1769184660326,0.14230775,2959.3,2958.0,0.00339032]
[1769184660526,0.83361304,2959.2,2957.2,0.137477]
[1769184661129,0.97592079,2959.2,2957.2,0.137477]
[1769184661424,0.16916,2959.4,2957.2,0.137477]
[1769184661425,0.97592079,2959.1,2957.2,0.137477]
[1769184661734,0.83361304,2959.0,2957.2,0.1418095]
[1769184662326,0.14818072,2959.6,2957.4,0.1440679]
[1769184662527,0.16913,2960.0,2957.6,0.1440679]
[1769184662828,0.83356302,2959.7,2957.6,0.1440679]
[1769184663026,0.16913,2960.0,2957.8,0.1440679]
[1769184663932,0.16913,2960.0,2957.8,0.3133179]
[1769184664134,0.16913,2960.0,2957.9,0.1440679]
[1769184666433,0.27039899,2960.2,2958.1,0.14620644]
[1769184666933,0.27039899,2960.2,2958.2,0.14620644]
[1769184671438,0.14923944,2959.8,2957.7,2.37011545]
[1769184671645,0.14923944,2959.8,2957.2,0.0043325]
[1769184671646,0.1692,2958.7,2957.2,0.0043325]
[1769184671842,0.83094161,2958.6,2957.2,0.0043325]
[1769184672037,0.1692,2958.7,2957.2,0.0043325]
[1769184672339,0.83105796,2958.6,2957.2,0.0043325]
[1769184673942,0.1692,2958.7,2957.2,0.1557854]
[1769184674343,0.16922,2958.3,2955.9,0.1514529]
[1769184675444,0.85421477,2958.2,2955.9,0.15501407]
[1769184675645,0.16922,2958.3,2955.9,0.15501407]
[1769184675845,0.8542119,2958.2,2955.9,0.15501407]
[1769184676143,0.16922,2958.3,2955.9,0.15501407]
[1769184676339,0.85413451,2958.2,2955.9,0.15501407]
[1769184676539,0.16922,2958.3,2955.9,0.15501407]
[1769184676939,0.16918,2959.0,2956.2,0.15025752]
[1769184677135,0.00308311,2956.9,2954.5,0.15025752]
[1769184677534,0.16932,2956.6,2954.5,0.15025752]
[1769184677741,0.16929,2957.1,2954.5,0.15025752]
[1769184677943,1.14073191,2957.0,2954.5,0.15025752]
[1769184678146,1.14073405,2956.9,2954.5,0.15335481]
[1769184678344,0.8547642,2956.8,2954.5,0.15335481]
[1769184678646,0.8547642,2956.7,2954.5,0.15335481]
[1769184678841,0.00693117,2957.0,2954.5,0.15335481]
[1769184679039,0.00325182,2956.8,2954.5,0.15335481]
[1769184679347,0.00325182,2956.6,2954.5,0.00309729]
[1769184679645,0.16934,2956.3,2954.5,0.00309729]
[1769184679844,0.85383042,2956.2,2954.5,0.00309729]
[1769184680046,0.85281227,2956.1,2954.5,0.00309729]
[1769184680241,0.16934,2956.3,2954.5,0.00309729]
[1769184681143,0.44117862,2956.3,2954.5,0.00309729]
[1769184681447,0.44117862,2956.3,2954.5,0.15414003]
[1769184683347,0.27183862,2956.3,2954.5,0.15414003]
[1769184683550,0.00367935,2957.0,2954.5,0.15414003]
[1769184683745,0.84858684,2956.9,2954.5,0.15414003]
[1769184684045,0.00367935,2957.0,2954.5,0.15414003]
[1769184684046,0.26951797,2957.0,2954.5,0.15414003]
[1769184684253,0.16931,2956.8,2954.5,0.15414003]
[1769184684548,0.26951797,2957.0,2954.5,0.15414003]
[1769184685051,0.00124844,2956.9,2954.5,0.15414003]
[1769184685251,0.17055844,2956.8,2954.5,0.15414003]
[1769184685954,0.16931,2956.8,2954.5,0.15414003]
[1769184687042,0.16931,2956.8,2954.6,0.15201792]
[1769184690255,0.16931,2956.8,2954.7,0.14963253]
[1769184690559,0.26951797,2957.0,2954.9,0.14963253]
[1769184691356,0.26951797,2957.0,2955.0,0.14963253]
[1769184691552,0.26951797,2957.0,2955.1,0.14963253]
[1769184691954,0.00367935,2957.0,2955.3,0.14966831]
[1769184692161,0.00367935,2957.0,2955.3,0.31905831]
[1769184692365,0.00367935,2957.0,2955.6,0.14966831]
[1769184692559,0.00367935,2957.0,2955.8,0.14966831]
[1769184702162,0.00367935,2957.0,2954.8,0.16942]
[1769184702163,0.85896231,2956.9,2955.3,0.15154265]
[1769184702469,0.85901666,2956.8,2955.3,0.15154265]
[1769184702658,0.85901666,2956.7,2955.3,0.15154265]
[1769184702967,0.17297935,2957.0,2955.3,0.15154265]
[1769184703266,0.00367935,2957.0,2955.3,0.15154265]
[1769184703770,0.00367935,2957.0,2955.4,0.3204678]
[1769184704068,0.00367935,2957.0,2955.5,0.1510778]
[1769184705260,0.00367935,2957.0,2955.5,0.3204578]
[1769184705459,0.00367935,2957.0,2955.6,0.1510778]
[1769184705657,0.16931,2956.8,2955.0,0.1510778]
[1769184705865,1.31605579,2956.7,2955.0,0.1510778]
[1769184706068,0.85994589,2956.6,2955.0,0.1510778]
[1769184706965,1.31916685,2955.9,2953.5,4.08099244]
[1769184707274,1.31916685,2955.9,2952.8,0.15188368]
[1769184707275,0.1694,2955.2,2952.8,0.15188368]
[1769184707567,1.14686234,2955.1,2952.8,0.15188368]
[1769184707769,1.14686234,2955.0,2952.8,0.15188368]
[1769184707967,1.18175145,2954.9,2952.9,0.15021193]
[1769184708169,0.85994589,2954.8,2952.9,0.15021193]
[1769184708364,0.00426067,2954.9,2952.9,0.15021193]
[1769184708365,0.00426067,2954.9,2952.9,0.31974193]
[1769184708572,0.00426067,2954.9,2953.0,0.15021193]
[1769184708767,0.00426067,2954.9,2953.2,0.15021193]
[1769184710773,0.16943,2954.7,2952.8,0.15340706]
[1769184710976,1.22071719,2954.6,2952.8,0.15340706]
[1769184711176,0.16946,2954.2,2952.8,0.15340706]
[1769184711373,0.89913453,2954.1,2952.8,0.15340706]
[1769184711676,0.89913453,2954.0,2952.8,0.15340706]
[1769184711882,0.16946,2954.2,2952.8,0.15340706]
[1769184712069,0.89850663,2954.1,2952.8,0.15340706]
[1769184712269,0.89850663,2954.0,2952.2,0.14934372]
[1769184712579,0.89850663,2953.9,2952.2,0.14934372]
[1769184712772,0.89850663,2953.8,2952.2,0.14934372]
[1769184713078,0.16947,2954.0,2952.2,0.14934372]
[1769184713273,0.16943,2954.7,2952.2,0.15302426]
[1769184713479,1.213996,2954.6,2952.2,0.15302426]
[1769184713672,1.213996,2954.5,2952.2,0.15302426]
[1769184713879,1.38342842,2954.4,2952.2,0.15302426]
[1769184714079,0.89670779,2954.3,2952.2,0.15302426]
[1769184714278,0.89670779,2954.2,2952.2,0.15302426]
[1769184714479,0.89670779,2954.1,2952.2,0.15302426]
[1769184714680,0.16945,2954.4,2952.2,0.15302426]
[1769184714977,0.89591963,2954.3,2952.2,0.15302426]
[1769184715172,0.89591963,2954.2,2952.2,0.15302426]
[1769184715367,0.16945,2954.4,2952.2,0.15302426]
[1769184715576,0.89515181,2954.3,2952.2,0.15302426]
[1769184715782,0.16945,2954.4,2952.2,0.15302426]
[1769184715981,0.8951542,2954.3,2952.2,0.15302426]
[1769184716181,0.16945,2954.4,2952.2,0.15302426]
[1769184716574,0.16945,2954.4,2952.3,0.14889217]
[1769184720382,0.16946,2954.2,2952.3,0.14889217]
[1769184720581,0.26611817,2954.6,2952.3,0.14889217]
[1769184720780,0.17493639,2954.8,2952.4,0.14912549]
[1769184720988,1.0625111,2954.7,2952.4,0.14912549]
[1769184721176,1.0625211,2954.6,2952.4,0.14912549]
[1769184721492,0.16944,2954.6,2952.4,0.14912549]
[1769184721784,0.16944,2954.6,2952.5,0.14935736]
[1769184722483,0.27501469,2954.7,2952.8,0.14936077]
[1769184724383,0.16946,2954.3,2952.8,0.14936077]
[1769184726984,0.27501469,2954.7,2952.8,0.14936077]
[1769184727181,0.27501469,2954.7,2952.9,0.14995329]
[1769184727482,0.00426067,2954.9,2953.0,0.14995329]
[1769184727680,0.00426067,2954.9,2953.0,0.31947329]
[1769184727982,0.27604631,2954.9,2953.1,0.15027963]
[1769184733386,0.90504343,2954.8,2953.1,0.15027963]
[1769184733587,0.90505291,2954.7,2953.1,0.15027963]
[1769184733888,0.9050997,2954.6,2953.1,0.15027963]
[1769184734087,0.9063471,2954.5,2953.1,0.15027963]
[1769184734290,0.9063471,2954.4,2953.1,0.15027963]
[1769184734492,0.16942,2954.8,2953.1,0.15027963]
[1769184734689,1.2224507,2954.7,2953.1,0.15027963]
[1769184734994,0.9065018,2954.6,2953.1,0.15027963]
[1769184735187,0.9065018,2954.5,2953.1,0.15027963]
[1769184735493,0.16942,2954.8,2953.1,0.15027963]
[1769184735494,0.9065018,2954.4,2953.1,0.15027963]
[1769184735690,0.16942,2954.8,2953.1,0.15027963]
[1769184736001,1.22483014,2954.7,2953.1,0.15027963]
[1769184736192,0.90826037,2954.6,2953.1,0.15027963]
[1769184736388,0.90826037,2954.5,2953.1,0.15027963]
[1769184736590,0.90826037,2954.4,2953.3,0.14952902]
[1769184736793,0.27604631,2954.9,2953.3,0.14952902]
[1769184736992,1.226538,2954.8,2953.3,0.14952902]
[1769184737190,1.226538,2954.7,2953.3,0.14952902]
[1769184737391,0.90956485,2954.6,2953.3,0.14952902]
[1769184737593,0.00426067,2954.9,2953.4,0.14952902]
[1769184737794,0.90946877,2954.8,2953.4,0.14952902]
[1769184738081,0.00426067,2954.9,2953.7,0.14998892]
[1769184738894,0.00426067,2954.9,2953.8,0.14998892]
[1769184740393,2.41806675,2956.1,2954.1,0.14785451]
[1769184740595,1.22340558,2956.0,2954.1,0.14785451]
[1769184740794,1.22340558,2955.9,2954.1,0.14785451]
[1769184740997,1.22340558,2955.8,2954.1,0.31731451]
[1769184741192,1.22340558,2955.7,2954.2,0.14785451]
[1769184741497,0.90896398,2955.6,2954.2,0.14785451]
[1769184741696,0.90896398,2955.5,2954.2,0.14785451]
[1769184741895,0.00416531,2955.7,2954.2,0.14785451]
[1769184742201,0.9084648,2955.6,2954.2,0.14785451]
[1769184742393,0.00416531,2955.7,2954.2,0.14785451]
[1769184742594,0.90809984,2955.6,2954.2,0.14785451]
[1769184742895,0.90809984,2955.5,2954.2,0.14785451]
[1769184743097,0.00416531,2955.7,2954.3,0.14804612]
[1769184743395,0.90814331,2955.6,2954.3,0.15199069]
[1769184743597,0.00416531,2955.7,2954.3,0.15199069]
[1769184743797,0.90786522,2955.6,2954.3,0.15199069]
[1769184743997,0.00416531,2955.7,2954.3,0.15199069]
[1769184744191,0.90790481,2955.6,2954.3,0.15199069]
[1769184744392,0.00416531,2955.7,2954.3,0.15199069]
[1769184745803,0.9075751,2955.6,2954.3,0.15199069]
[1769184746005,0.00416531,2955.7,2954.3,0.15199069]
[1769184746502,0.90744064,2955.6,2954.3,0.15199069]
[1769184746802,0.00416531,2955.7,2954.3,0.15199069]
[1769184747599,0.00416531,2955.7,2954.3,0.32144069]
[1769184747802,0.00416531,2955.7,2954.4,0.14830729]
[1769184748703,0.00416531,2955.7,2954.4,0.31775729]
[1769184749006,0.00416531,2955.7,2954.5,0.14830729]
[1769184749702,0.00416531,2955.7,2954.3,0.00394457]
[1769184749906,1.22123311,2955.6,2954.3,0.00394457]
[1769184750107,1.22123311,2955.5,2954.3,0.00394457]
[1769184750406,0.90734404,2955.4,2954.3,0.00394457]
[1769184750707,0.90734404,2955.3,2954.3,0.00394457]
[1769184750907,0.18068121,2955.7,2954.3,0.00394457]
[1769184751209,1.2214678,2955.6,2954.3,0.00394457]
[1769184751404,1.2214678,2955.5,2954.3,0.00394457]
[1769184751601,1.22869538,2955.4,2953.4,0.15026009]
[1769184751806,1.22154948,2955.3,2953.4,0.15026009]
[1769184752008,0.90751259,2955.2,2953.5,0.14971818]
[1769184752308,0.90751259,2955.1,2953.5,0.14971818]
[1769184752509,0.0071459,2955.4,2953.5,0.15254812]